fUST/lending_fUST_20260601
["ID","MTS","AMOUNT","RATE_DAILY","PERIOD"]
[423664417,1780289441000,-500.0,0.00015765,2]
[423664406,1780289441000,-500.0,0.00015489,2]
[423664448,1780289442000,-500.0,0.00017133,2]
[423664451,1780289442000,-500.0,0.00017407,2]
[423664452,1780289442000,-500.0,0.00017407,2]
[423664457,1780289442000,-502.05715644,0.00017683,2]
[423664450,1780289442000,-500.0,0.00017135,2]
[423664453,1780289442000,-500.0,0.00017409,2]
[423664454,1780289442000,-198.865934,0.00017422,2]
[423664462,1780289442000,-153.0,0.00021649,120]
[423664456,1780289442000,-258.38,0.00017681,2]
[423664455,1780289442000,-500.0,0.00017681,2]
[423664458,1780289442000,-246.854,0.00017752,2]
[423664471,1780289442000,-500.0,0.00024384,2]
[423664461,1780289442000,-1100.0,0.00021553,30]
[423664460,1780289442000,-198.865934,0.00019081,2]
[423664449,1780289442000,-500.0,0.00017133,2]
[423664446,1780289442000,-572.54,0.00016859,2]
[423664447,1780289442000,-500.0,0.00016861,2]
[423664441,1780289442000,-500.0,0.00016585,2]
[423664444,1780289442000,-500.0,0.00016859,2]
[423664428,1780289442000,-347.98773403,0.00016073,2]
[423664429,1780289442000,-356.37400387,0.00016073,2]
[423664430,1780289442000,-184.71226072,0.00016073,2]
[423664431,1780289442000,-500.0,0.00016311,2]
[423664436,1780289442000,-500.0,0.00016313,2]
[423664433,1780289442000,-500.0,0.00016311,2]
[423664437,1780289442000,-220.33137239,0.00016385,2]
[423664442,1780289442000,-500.0,0.00016587,2]
[423664435,1780289442000,-500.0,0.00016311,2]
[423664439,1780289442000,-350.83137768,0.00016585,2]
[423664440,1780289442000,-500.0,0.00016585,2]
[423664434,1780289442000,-574.47510647,0.00016311,2]
[423664438,1780289442000,-500.0,0.00016585,2]
[423664443,1780289442000,-500.0,0.00016859,2]
[423664432,1780289442000,-500.0,0.00016311,2]
[423664445,1780289442000,-500.0,0.00016859,2]
[423664468,1780289442000,-500.0,0.00024384,2]
[423664459,1780289442000,-678.57131288,0.0001884,2]
[423664463,1780289442000,-153.0,0.00022649,120]
[423664487,1780289442000,-500.0,0.00024384,2]
[423664489,1780289442000,-500.0,0.00024384,2]
[423664491,1780289442000,-500.0,0.00024384,2]
[423664490,1780289442000,-500.0,0.00024384,2]
[423664488,1780289442000,-500.0,0.00024384,2]
[423664498,1780289442000,-200.39,0.000251,2]
[423664496,1780289442000,-500.0,0.00025047,2]
[423664486,1780289442000,-318.69092727,0.00024384,2]
[423664492,1780289442000,-547.2779755,0.00024384,2]
[423664493,1780289442000,-500.0,0.00024384,2]
[423664495,1780289442000,-151.5,0.00024384,2]
[423664497,1780289442000,-500.0,0.00025047,2]
[423664500,1780289442000,-5038.54400003,0.0003,120]
[423664502,1780289442000,-2829.93241276,0.00031,120]
[423664501,1780289442000,-562293.309714,0.00031,120]
[423664470,1780289442000,-500.0,0.00024384,2]
[423664494,1780289442000,-245.45529069,0.00024384,2]
[423664483,1780289442000,-500.0,0.00024384,2]
[423664499,1780289442000,-500.0,0.00025321,2]
[423664481,1780289442000,-500.0,0.00024384,2]
[423664469,1780289442000,-500.0,0.00024384,2]
[423664465,1780289442000,-500.0,0.00024384,2]
[423664464,1780289442000,-500.0,0.00024384,2]
[423664466,1780289442000,-500.0,0.00024384,2]
[423664467,1780289442000,-336.94090121,0.00024384,2]
[423664472,1780289442000,-500.0,0.00024384,2]
[423664479,1780289442000,-151.5,0.00024384,2]
[423664474,1780289442000,-151.5,0.00024384,2]
[423664473,1780289442000,-309.57189977,0.00024384,2]
[423664475,1780289442000,-500.0,0.00024384,2]
[423664484,1780289442000,-500.0,0.00024384,2]
[423664480,1780289442000,-186.99817655,0.00024384,2]
[423664476,1780289442000,-500.0,0.00024384,2]
[423664478,1780289442000,-463.79656246,0.00024384,2]
[423664482,1780289442000,-500.0,0.00024384,2]
[423664485,1780289442000,-500.0,0.00024384,2]
[423664477,1780289442000,-151.5,0.00024384,2]
[423664515,1780289444000,-4253.12069302,0.00031,120]
[423664516,1780289444000,-20541.1193907,0.00031,120]
[423664537,1780289447000,-1025.76618042,0.00031,120]
[423664538,1780289447000,-63266.93212885,0.00031,120]
[423664536,1780289447000,-182575.21854501,0.00031,120]
[423664540,1780289447000,-991.39730097,0.00031,120]
[423664539,1780289447000,-36500.0,0.00031,120]
[423664541,1780289447000,-20165.67121127,0.00031,120]
[423664542,1780290130000,-152.0,0.00012139,2]
[423664774,1780290631000,-4070.87034478,0.00010673,2]
[423664771,1780290631000,-929.12965522,0.00010673,2]
[423664769,1780290631000,-1341.74481262,0.00010566,2]
[423664763,1780290631000,-3082.32694291,0.00010566,2]
[423664760,1780290631000,-575.92824447,0.00010566,2]
[423664803,1780290632000,-399.3818089,0.00015081,2]
[423664801,1780290632000,-146.45532049,0.0001508,2]
[423664799,1780290632000,-353.54467951,0.0001508,2]
[423664797,1780290632000,-79.18258586,0.00014913,2]
[423664795,1780290632000,-507.81741414,0.00014913,2]
[423664791,1780290632000,-117.86073076,0.00014641,7]
[423664787,1780290632000,-420.0,0.0001359,2]
[423664782,1780290632000,-280.9631335,0.00013011,2]
[423664785,1780290632000,-600.0,0.00013255,2]
[423664793,1780290632000,-35.13926924,0.00014641,7]
[423664780,1780290632000,-184.69660956,0.00012739,7]
[423664776,1780290632000,-300.0,0.00012384,2]
[423664778,1780290632000,-418.09033005,0.00012386,2]
[423664806,1780290632000,-500.0,0.00015081,2]
[423664788,1780290632000,-720.0,0.0001458,2]
[423664804,1780290632000,-100.6181911,0.00015081,2]
[423664813,1780290632000,-500.0,0.00015081,2]
[423664809,1780290632000,-187.97468694,0.00015081,2]
[423664827,1780290632000,-328.16018646,0.00015081,2]
[423664808,1780290632000,-500.0,0.00015081,2]
[423664824,1780290632000,-500.0,0.00015081,2]
[423664826,1780290632000,-500.0,0.00015081,2]
[423664825,1780290632000,-500.0,0.00015081,2]
[423664821,1780290632000,-500.0,0.00015081,2]
[423664822,1780290632000,-500.0,0.00015081,2]
[423664823,1780290632000,-500.0,0.00015081,2]
[423664819,1780290632000,-360.35915088,0.00015081,2]
[423664818,1780290632000,-139.64084912,0.00015081,2]
[423664817,1780290632000,-129.88861783,0.00015081,2]
[423664815,1780290632000,-500.0,0.00015081,2]
[423664816,1780290632000,-370.11138217,0.00015081,2]
[423664811,1780290632000,-500.0,0.00015081,2]
[423664820,1780290632000,-500.0,0.00015081,2]
[423664867,1780290638000,-500.0,0.00015081,2]
[423664858,1780290638000,-626.60108494,0.00015081,2]
[423664860,1780290638000,-500.0,0.00015081,2]
[423664861,1780290638000,-500.0,0.00015081,2]
[423664863,1780290638000,-500.0,0.00015081,2]
[423664859,1780290638000,-213.2185131,0.00015081,2]
[423664862,1780290638000,-500.0,0.00015081,2]
[423664864,1780290638000,-500.0,0.00015081,2]
[423664871,1780290638000,-500.0,0.00015081,2]
[423664866,1780290638000,-500.0,0.00015081,2]
[423664868,1780290638000,-500.0,0.00015081,2]
[423664869,1780290638000,-500.0,0.00015081,2]
[423664870,1780290638000,-500.0,0.00015081,2]
[423664872,1780290638000,-500.0,0.00015081,2]
[423664856,1780290638000,-518.01623558,0.00015081,2]
[423664875,1780290638000,-500.0,0.00015081,2]
[423664874,1780290638000,-500.0,0.00015081,2]
[423664873,1780290638000,-500.0,0.00015081,2]
[423664877,1780290638000,-500.0,0.00015081,2]
[423664865,1780290638000,-500.0,0.00015081,2]
[423664857,1780290638000,-313.57684528,0.00015081,2]
[423664843,1780290638000,-500.0,0.00015081,2]
[423664854,1780290638000,-500.0,0.00015081,2]
[423664876,1780290638000,-500.0,0.00015081,2]
[423664836,1780290638000,-171.83981354,0.00015081,2]
[423664835,1780290638000,-5000.0,0.0001493,2]
[423664837,1780290638000,-500.0,0.00015081,2]
[423664839,1780290638000,-500.0,0.00015081,2]
[423664838,1780290638000,-500.0,0.00015081,2]
[423664841,1780290638000,-500.0,0.00015081,2]
[423664840,1780290638000,-500.0,0.00015081,2]
[423664842,1780290638000,-500.0,0.00015081,2]
[423664844,1780290638000,-500.0,0.00015081,2]
[423664848,1780290638000,-500.0,0.00015081,2]
[423664847,1780290638000,-500.0,0.00015081,2]
[423664845,1780290638000,-500.0,0.00015081,2]
[423664849,1780290638000,-500.0,0.00015081,2]
[423664846,1780290638000,-180.77797576,0.00015081,2]
[423664850,1780290638000,-500.0,0.00015081,2]
[423664852,1780290638000,-500.0,0.00015081,2]
[423664851,1780290638000,-500.0,0.00015081,2]
[423664853,1780290638000,-500.0,0.00015081,2]
[423664855,1780290638000,-500.00000001,0.00015081,2]
[423664878,1780290638000,-500.0,0.00015081,2]
[423664913,1780290638000,-800.0,0.00016364,2]
[423664880,1780290638000,-500.0,0.00015081,2]
[423664905,1780290638000,-165.7495221,0.00015083,2]
[423664906,1780290638000,-500.0,0.00015354,2]
[423664912,1780290638000,-500.0,0.00016176,2]
[423664909,1780290638000,-500.0,0.00015628,2]
[423664907,1780290638000,-153.0,0.00015502,7]
[423664911,1780290638000,-864.0,0.00016038,2]
[423664879,1780290638000,-500.0,0.00015081,2]
[423664908,1780290638000,-163.63250448,0.00015502,7]
[423664915,1780290638000,-500.0,0.00016724,2]
[423664916,1780290638000,-500.0,0.00016998,2]
[423664917,1780290638000,-500.0,0.00017272,2]
[423664914,1780290638000,-500.0,0.0001645,2]
[423664918,1780290638000,-500.0,0.00017546,2]
[423664920,1780290638000,-500.0,0.0001782,2]
[423664923,1780290638000,-500.0,0.00018094,2]
[423664921,1780290638000,-243.085,0.00017885,2]
[423664924,1780290638000,-500.0,0.00018368,2]
[423664919,1780290638000,-1000.0,0.00017642,2]
[423664922,1780290638000,-3714.89352607,0.00017904,120]
[423664903,1780290638000,-500.0,0.00015081,2]
[423664904,1780290638000,-500.0,0.00015081,2]
[423664910,1780290638000,-500.0,0.00015902,2]
[423664902,1780290638000,-500.0,0.00015081,2]
[423664881,1780290638000,-500.0,0.00015081,2]
[423664901,1780290638000,-500.0,0.00015081,2]
[423664883,1780290638000,-500.0,0.00015081,2]
[423664887,1780290638000,-500.0,0.00015081,2]
[423664886,1780290638000,-500.0,0.00015081,2]
[423664882,1780290638000,-500.0,0.00015081,2]
[423664885,1780290638000,-500.0,0.00015081,2]
[423664888,1780290638000,-500.0,0.00015081,2]
[423664889,1780290638000,-500.0,0.00015081,2]
[423664891,1780290638000,-500.0,0.00015081,2]
[423664884,1780290638000,-500.0,0.00015081,2]
[423664892,1780290638000,-500.0,0.00015081,2]
[423664890,1780290638000,-500.0,0.00015081,2]
[423664897,1780290638000,-298.10822673,0.00015081,2]
[423664898,1780290638000,-500.0,0.00015081,2]
[423664899,1780290638000,-500.0,0.00015081,2]
[423664900,1780290638000,-500.0,0.00015081,2]
[423664894,1780290638000,-500.0,0.00015081,2]
[423664895,1780290638000,-500.0,0.00015081,2]
[423664893,1780290638000,-500.0,0.00015081,2]
[423664896,1780290638000,-500.0,0.00015081,2]
[423664940,1780290639000,-270.0,0.00023482,10]
[423664939,1780290639000,-1000.0,0.00023482,10]
[423664941,1780290639000,-3846.33808528,0.00023516,120]
[423664942,1780290639000,-4306.99844612,0.00024451,120]
[423664934,1780290639000,-3714.8935262,0.0002071,120]
[423664938,1780290639000,-3718.96481921,0.00022581,120]
[423664935,1780290639000,-1000.0,0.00021347,10]
[423664936,1780290639000,-492.0,0.00021347,10]
[423664928,1780290639000,-500.0,0.00018916,2]
[423664933,1780290639000,-3714.89352607,0.00019775,120]
[423664931,1780290639000,-244.0,0.00019406,2]
[423664930,1780290639000,-1000.0,0.00019406,2]
[423664929,1780290639000,-500.0,0.0001919,2]
[423664926,1780290639000,-157.95635408,0.00018838,2]
[423664925,1780290639000,-500.0,0.00018642,2]
[423664927,1780290639000,-3714.89352607,0.00018839,120]
[423664932,1780290639000,-524.09414343,0.00019464,2]
[423664943,1780290639000,-4328.46913988,0.00025387,120]
[423664937,1780290639000,-3718.96481921,0.00021645,120]
[423664945,1780290639000,-500.0,0.00027256,2]
[423664944,1780290639000,-4810.60019448,0.00026322,120]
[423664962,1780290639000,-609760.26826134,0.00031,120]
[423664960,1780290639000,-339794.6330577,0.00031,120]
[423664961,1780290639000,-1200.0,0.00031,120]
[423664956,1780290639000,-2551.5819153,0.00030313,2]
[423664959,1780290639000,-6863.7491154,0.00030999,120]
[423664957,1780290639000,-185.0,0.00030704,2]
[423664955,1780290639000,-6659.13295376,0.00030063,120]
[423664958,1780290639000,-444.0,0.00030704,2]
[423664951,1780290639000,-1255.4849727,0.00029028,2]
[423664953,1780290639000,-500.0,0.000295,14]
[423664954,1780290639000,-500.0,0.0003,14]
[423664946,1780290639000,-5292.73124908,0.00027257,120]
[423664947,1780290639000,-500.0,0.00028,14]
[423664948,1780290639000,-5774.86230368,0.00028193,120]
[423664950,1780290639000,-500.0,0.00029,14]
[423664949,1780290639000,-500.0,0.000285,14]
[423664952,1780290639000,-6043.39602239,0.00029128,120]
[423664999,1780290643000,-2778.75701118,0.00031,120]
[423664998,1780290643000,-2765.24298882,0.00031,120]
[423665008,1780290646000,-2185.90151983,0.00031,120]
[423665009,1780290684000,214.04809189,0.00021816,120]
[423665074,1780291832000,-366.995,0.00013235,2]
[423665055,1780291832000,-1716.94101869,0.00013103,2]
[423665057,1780291832000,-1228.19097908,0.00013103,2]
[423665076,1780291832000,-377.79288211,0.00013235,2]
[423665077,1780291832000,-1047.82984848,0.00013235,2]
[423665064,1780291832000,-2054.86800223,0.00013103,2]
[423665068,1780291832000,-304.45979512,0.00013235,2]
[423665079,1780291832000,-179.80600185,0.00014782,2]
[423665066,1780291832000,-1603.48199777,0.00013235,2]
[423665081,1780291833000,-82.00077922,0.0001498,2]
[423665207,1780291838000,-500.0,0.00014999,2]
[423665209,1780291838000,-500.0,0.00014999,2]
[423665205,1780291838000,-500.0,0.00014999,2]
[423665197,1780291838000,-500.0,0.00014999,2]
[423665192,1780291838000,-500.0,0.00014999,2]
[423665199,1780291838000,-500.0,0.00014999,2]
[423665201,1780291838000,-500.0,0.00014999,2]
[423665194,1780291838000,-500.0,0.00014999,2]
[423665186,1780291838000,-320.90391209,0.00014999,2]
[423665195,1780291838000,-500.0,0.00014999,2]
[423665184,1780291838000,-457.22159759,0.00014999,2]
[423665176,1780291838000,-650.19737338,0.00014999,2]
[423665175,1780291838000,-70.10141698,0.0001498,2]
[423665182,1780291838000,-500.0,0.00014999,2]
[423665180,1780291838000,-500.0,0.00014999,2]
[423665178,1780291838000,-275.62895689,0.00014999,2]
[423665190,1780291838000,-500.0,0.00014999,2]
[423665211,1780291838000,-47379.05300391,0.00015,2]
[423665203,1780291838000,-500.0,0.00014999,2]
[423665217,1780291838000,-152.0,0.00015508,7]
[423665237,1780291838000,-821.69632903,0.00021886,2]
[423665233,1780291838000,-92620.90576911,0.00021886,2]
[423665235,1780291838000,-300.0,0.00021886,2]
[423665249,1780291838000,-1610.4917356,0.00021886,2]
[423665231,1780291838000,-1171.78597452,0.00021786,2]
[423665247,1780291838000,-727.8249803,0.00021886,2]
[423665245,1780291838000,-50312.89588546,0.00021886,2]
[423665243,1780291838000,-7191.15573228,0.00021886,2]
[423665239,1780291838000,-331.69564091,0.00021886,2]
[423665241,1780291838000,-296.03043706,0.00021886,2]
[423665229,1780291838000,-152.0,0.00021585,30]
[423665213,1780291838000,-252.33508028,0.0001508,2]
[423665223,1780291838000,-539.41800554,0.00016009,2]
[423665215,1780291838000,-192.595266,0.00015491,2]
[423665221,1780291838000,-359.6120037,0.00015518,2]
[423665225,1780291838000,-243.363,0.00017947,2]
[423665219,1780291838000,-152.0,0.00015508,7]
[423665227,1780291838000,-6432.92989177,0.00017947,2]
[423665500,1780291840000,-908.36082376,0.00021886,2]
[423665515,1780291841000,-1007.28442649,0.00021886,2]
[423665829,1780291843000,-3471.94625,0.0001498,2]
[423665831,1780291843000,-162.475845,0.00021886,2]
[423665841,1780291843000,-666.16361349,0.00021886,2]
[423665838,1780291843000,-628.78756458,0.00021886,2]
[423665844,1780291843000,-514.25379995,0.00021886,2]
[423665833,1780291843000,-1297.21331,0.00021886,2]
[423666173,1780291846000,-5753.5512054,0.00021886,2]
[423666150,1780291846000,-768.08661344,0.00021886,2]
[423666148,1780291846000,-25414.54,0.00021886,2]
[423666146,1780291846000,-264.70981382,0.00021886,2]
[423666154,1780291846000,-958.5,0.00021886,2]
[423666152,1780291846000,-1220.88036571,0.00021886,2]
[423669109,1780291930000,-5893.8137,0.00014582,2]
[423669112,1780291946000,-2848.80342862,0.00014682,2]
[423669113,1780291963000,-2151.19657138,0.00014682,2]
[423669114,1780291980000,-5000.0,0.0001483,2]
[423669115,1780291997000,-210.49013822,0.00014582,2]
[423669117,1780292013000,-505.6268223,0.00014997,2]
[423669118,1780292030000,-500.0,0.00014997,2]
[423669156,1780292604000,165.6848688,0.00022012,120]
[423669155,1780292604000,165.6848688,0.00022012,120]
[423669154,1780292604000,165.6848688,0.00022012,120]
[423669157,1780292992000,168.0,0.00022012,120]
[423669158,1780293029000,168.0,0.00022012,30]
[423669199,1780293032000,-669.85014291,0.00014262,2]
[423669341,1780293038000,-305.94931859,0.00014996,2]
[423669324,1780293038000,-500.0,0.00014995,2]
[423669326,1780293038000,-500.0,0.00014995,2]
[423669346,1780293038000,-500.0,0.00014996,2]
[423669330,1780293038000,-500.0,0.00014995,2]
[423669345,1780293038000,-500.0,0.00014996,2]
[423669343,1780293038000,-500.0,0.00014996,2]
[423669339,1780293038000,-500.0,0.00014996,2]
[423669328,1780293038000,-500.0,0.00014995,2]
[423669322,1780293038000,-500.0,0.00014995,2]
[423669320,1780293038000,-500.0,0.00014995,2]
[423669337,1780293038000,-500.0,0.00014996,2]
[423669333,1780293038000,-500.0,0.00014996,2]
[423669331,1780293038000,-500.0,0.00014996,2]
[423669312,1780293038000,-3609.64379759,0.00014751,2]
[423669318,1780293038000,-328.58017751,0.00014995,2]
[423669310,1780293038000,-4330.14985709,0.00014262,2]
[423669316,1780293038000,-480.10043468,0.00014995,2]
[423669314,1780293038000,-3609.64379759,0.00014751,2]
[423669348,1780293038000,-500.0,0.00014996,2]
[423669335,1780293038000,-500.0,0.00014996,2]
[423669358,1780293038000,-500.0,0.00014996,2]
[423669379,1780293038000,-287.97947139,0.00014996,2]
[423669360,1780293038000,-502.21554115,0.00014996,2]
[423669350,1780293038000,-500.83940402,0.00014996,2]
[423669397,1780293038000,-306.08796031,0.00014996,2]
[423669393,1780293038000,-500.0,0.00014996,2]
[423669377,1780293038000,-500.0,0.00014996,2]
[423669389,1780293038000,-500.0,0.00014996,2]
[423669381,1780293038000,-500.0,0.00014996,2]
[423669394,1780293038000,-500.0,0.00014996,2]
[423669373,1780293038000,-1871.09,0.00014996,2]
[423669375,1780293038000,-500.0,0.00014996,2]
[423669391,1780293038000,-501.75188743,0.00014996,2]
[423669383,1780293038000,-500.0,0.00014996,2]
[423669385,1780293038000,-500.0,0.00014996,2]
[423669372,1780293038000,-500.0,0.00014996,2]
[423669368,1780293038000,-455.13816137,0.00014996,2]
[423669370,1780293038000,-500.0,0.00014996,2]
[423669366,1780293038000,-500.0,0.00014996,2]
[423669362,1780293038000,-500.0,0.00014996,2]
[423669356,1780293038000,-500.0,0.00014996,2]
[423669364,1780293038000,-500.0,0.00014996,2]
[423669354,1780293038000,-544.81,0.00014996,2]
[423669387,1780293038000,-500.0,0.00014996,2]
[423669352,1780293038000,-500.0,0.00014996,2]
[423669473,1780293039000,-159.02068962,0.00014997,2]
[423669471,1780293039000,-500.0,0.00014997,2]
[423669465,1780293039000,-500.0,0.00014997,2]
[423669463,1780293039000,-500.0,0.00014997,2]
[423669458,1780293039000,-500.0,0.00014997,2]
[423669469,1780293039000,-584.58105081,0.00014997,2]
[423669454,1780293039000,-500.0,0.00014997,2]
[423669460,1780293039000,-509.82,0.00014997,2]
[423669462,1780293039000,-500.0,0.00014997,2]
[423669477,1780293039000,-500.0,0.00014997,2]
[423669467,1780293039000,-500.0,0.00014997,2]
[423669479,1780293039000,-500.0,0.00014997,2]
[423669501,1780293039000,-500.0,0.00014999,2]
[423669495,1780293039000,-500.0,0.00014999,2]
[423669492,1780293039000,-381.53665263,0.00014999,2]
[423669490,1780293039000,-500.0,0.00014999,2]
[423669494,1780293039000,-500.0,0.00014999,2]
[423669480,1780293039000,-316.95958346,0.00014997,2]
[423669482,1780293039000,-500.0,0.00014997,2]
[423669486,1780293039000,-500.0,0.00014997,2]
[423669488,1780293039000,-500.0,0.00014998,2]
[423669499,1780293039000,-174.70671524,0.00014999,2]
[423669456,1780293039000,-500.0,0.00014997,2]
[423669524,1780293039000,-500.0,0.00014999,2]
[423669513,1780293039000,-504.15,0.00014999,2]
[423669497,1780293039000,-500.0,0.00014999,2]
[423669452,1780293039000,-500.0,0.00014997,2]
[423669439,1780293039000,-500.0,0.00014997,2]
[423669448,1780293039000,-500.0,0.00014997,2]
[423669503,1780293039000,-574.01683034,0.00014999,2]
[423669398,1780293039000,-500.0,0.00014996,2]
[423669400,1780293039000,-500.0,0.00014996,2]
[423669402,1780293039000,-500.0,0.00014996,2]
[423669404,1780293039000,-500.0,0.00014996,2]
[423669412,1780293039000,-500.0,0.00014997,2]
[423669408,1780293039000,-500.0,0.00014997,2]
[423669413,1780293039000,-500.0,0.00014997,2]
[423669406,1780293039000,-500.0,0.00014996,2]
[423669410,1780293039000,-500.0,0.00014997,2]
[423669417,1780293039000,-500.0,0.00014997,2]
[423669420,1780293039000,-500.0,0.00014997,2]
[423669422,1780293039000,-500.0,0.00014997,2]
[423669424,1780293039000,-500.0,0.00014997,2]
[423669435,1780293039000,-340.63262363,0.00014997,2]
[423669441,1780293039000,-500.0,0.00014997,2]
[423669437,1780293039000,-500.0,0.00014997,2]
[423669442,1780293039000,-500.0,0.00014997,2]
[423669427,1780293039000,-500.0,0.00014997,2]
[423669426,1780293039000,-500.0,0.00014997,2]
[423669444,1780293039000,-500.0,0.00014997,2]
[423669429,1780293039000,-500.0,0.00014997,2]
[423669433,1780293039000,-500.0,0.00014997,2]
[423669431,1780293039000,-500.0,0.00014997,2]
[423669446,1780293039000,-500.0,0.00014997,2]
[423669450,1780293039000,-500.0,0.00014997,2]
[423669520,1780293039000,-500.0,0.00014999,2]
[423669475,1780293039000,-500.0,0.00014997,2]
[423669519,1780293039000,-500.0,0.00014999,2]
[423669576,1780293039000,-500.0,0.00015269,2]
[423669566,1780293039000,-500.0,0.00014999,2]
[423669572,1780293039000,-956.16223543,0.00015202,2]
[423669578,1780293039000,-500.0,0.00015269,2]
[423669580,1780293039000,-500.0,0.00015269,2]
[423669582,1780293039000,-500.0,0.00015269,2]
[423669585,1780293039000,-174.71372,0.0001527,2]
[423669590,1780293039000,-500.0,0.0001527,2]
[423669593,1780293039000,-500.0,0.0001527,2]
[423669588,1780293039000,-500.0,0.0001527,2]
[423669584,1780293039000,-500.0,0.0001527,2]
[423669600,1780293039000,-500.0,0.0001527,2]
[423669574,1780293039000,-500.0,0.00015269,2]
[423669612,1780293039000,-544.81,0.0001527,2]
[423669606,1780293039000,-500.0,0.0001527,2]
[423669615,1780293039000,-500.0,0.0001527,2]
[423669620,1780293039000,-500.0,0.0001527,2]
[423669617,1780293039000,-500.0,0.0001527,2]
[423669622,1780293039000,-500.0,0.0001527,2]
[423669635,1780293039000,-500.0,0.0001527,2]
[423669631,1780293039000,-500.0,0.0001527,2]
[423669634,1780293039000,-500.0,0.0001527,2]
[423669629,1780293039000,-500.0,0.0001527,2]
[423669624,1780293039000,-500.0,0.0001527,2]
[423669638,1780293039000,-500.0,0.0001527,2]
[423669505,1780293039000,-500.0,0.00014999,2]
[423669609,1780293039000,-500.0,0.0001527,2]
[423669564,1780293039000,-500.0,0.00014999,2]
[423669596,1780293039000,-504.66531902,0.0001527,2]
[423669558,1780293039000,-500.0,0.00014999,2]
[423669570,1780293039000,-617.40091103,0.00015197,2]
[423669526,1780293039000,-500.0,0.00014999,2]
[423669515,1780293039000,-500.0,0.00014999,2]
[423669522,1780293039000,-396.14647603,0.00014999,2]
[423669509,1780293039000,-500.0,0.00014999,2]
[423669511,1780293039000,-500.0,0.00014999,2]
[423669507,1780293039000,-501.70885025,0.00014999,2]
[423669517,1780293039000,-500.0,0.00014999,2]
[423669530,1780293039000,-500.0,0.00014999,2]
[423669540,1780293039000,-500.0,0.00014999,2]
[423669538,1780293039000,-500.0,0.00014999,2]
[423669535,1780293039000,-500.0,0.00014999,2]
[423669532,1780293039000,-500.0,0.00014999,2]
[423669528,1780293039000,-500.0,0.00014999,2]
[423669534,1780293039000,-500.0,0.00014999,2]
[423669544,1780293039000,-500.0,0.00014999,2]
[423669568,1780293039000,-500.0,0.00014999,2]
[423669560,1780293039000,-288.47576437,0.00014999,2]
[423669556,1780293039000,-500.0,0.00014999,2]
[423669552,1780293039000,-261.72262418,0.00014999,2]
[423669554,1780293039000,-500.0,0.00014999,2]
[423669562,1780293039000,-500.0,0.00014999,2]
[423669627,1780293039000,-1871.09,0.0001527,2]
[423669548,1780293039000,-500.0,0.00014999,2]
[423669542,1780293039000,-500.0,0.00014999,2]
[423669546,1780293039000,-500.0,0.00014999,2]
[423669549,1780293039000,-500.0,0.00014999,2]
[423669720,1780293040000,-500.0,0.00015273,2]
[423669714,1780293040000,-500.0,0.00015273,2]
[423669716,1780293040000,-372.35772935,0.00015273,2]
[423669706,1780293040000,-500.0,0.00015273,2]
[423669729,1780293040000,-3712.15176184,0.00015362,41]
[423669728,1780293040000,-600.0,0.00015297,2]
[423669725,1780293040000,-500.0,0.00015273,2]
[423669723,1780293040000,-500.0,0.00015273,2]